bitfinex-derivatives/quotes_ETHF0:USTF0_20250629
["timestamp","ask_amount","ask_price","bid_price","bid_amount"]
[1751236944670,3.2078,2490.9,2490.7,3.00165429]
[1751236944870,3.2078,2490.9,2490.8,2.27514153]
[1751236945071,3.2078,2490.9,2490.7,2.27514153]
[1751236945274,3.68941,2490.9,2490.8,2.27514153]
[1751236945770,3.68941,2490.9,2490.8,1.51763242]
[1751236945771,8.68941,2490.9,2490.8,1.51763242]
[1751236946178,0.48163,2490.8,2490.7,1.51763242]
[1751236946472,0.48165,2490.7,2490.6,2.27514153]
[1751236946670,3.2078,2490.9,2490.6,2.75680153]
[1751236946966,49.9549,2491.5,2490.8,2.27514153]
[1751236946967,7.954,2491.0,2490.8,2.27514153]
[1751236947173,11.1618,2491.2,2490.9,1.51778099]
[1751236947370,0.48159,2491.0,2490.9,1.51855325]
[1751236947570,0.48161,2490.9,2490.8,1.51855325]
[1751236947769,3.68941,2490.9,2490.8,1.13934211]
[1751236947971,8.68941,2490.9,2490.8,1.13934211]
[1751236948170,8.2078,2490.9,2490.6,1.13934211]
[1751236948368,8.43564,2490.8,2490.5,1.13934211]
[1751236948571,0.48165,2490.7,2490.4,0.4817]
[1751236948771,0.48165,2490.7,2490.3,0.48172]
[1751236948972,1.9591,2490.6,2490.3,0.48172]
[1751236949174,1.9591,2490.6,2490.4,0.4817]
[1751236949475,7.954,2490.8,2490.4,0.4817]
[1751236949476,3.2078,2490.9,2490.4,3.2078]
[1751236949669,3.2078,2491.2,2490.6,4.95804943]
[1751236949869,3.2078,2491.2,2491.1,0.48157]
[1751236950677,48.16,2491.5,2491.4,0.48152]
[1751236950874,56.115,2491.5,2491.0,3.2078]
[1751236951079,57.9785,2491.5,2491.0,3.2078]
[1751236951682,0.48154,2491.3,2491.0,3.68938]
[1751236951878,0.48154,2491.3,2491.0,3.2078]
[1751236952078,0.48157,2491.1,2491.0,3.2078]
[1751236952279,2.34507,2491.2,2490.7,1.8475]
[1751236952481,7.955,2491.1,2490.7,1.8475]
[1751236952681,7.955,2491.1,2490.8,0.48163]
[1751236953283,9.8185,2491.1,2490.8,0.48163]
[1751236953786,3.2078,2491.4,2490.9,0.4816]
[1751236953977,7.955,2491.3,2490.7,3.8189]
[1751236954183,10.25084,2491.3,2491.0,0.48158]
[1751236954383,10.25084,2491.3,2490.9,0.4816]
[1751236954581,3.2078,2491.1,2490.8,0.48162]
[1751236954886,3.2078,2491.1,2490.7,0.48164]
[1751236954887,0.48158,2491.1,2490.7,0.48164]
[1751236955382,2.29588,2491.1,2490.7,0.48164]
[1751236956286,2.29588,2491.1,2490.9,1.13934211]
[1751236956481,2.29588,2491.1,2490.8,1.13934211]
[1751236956784,2.29588,2491.1,2490.6,4.13644153]
[1751236956785,7.955,2491.1,2490.9,0.4816]
[1751236956979,7.955,2491.1,2490.8,0.48162]
[1751236957177,8.43657,2491.1,2490.7,0.48164]
[1751236957382,1.8074,2491.0,2490.6,1.8613]
[1751236957783,2.289,2491.0,2490.7,0.48164]
[1751236957983,2.289,2491.0,2490.6,1.8613]
[1751236957984,51.3678,2491.5,2490.6,1.8613]
[1751236958185,2.28893,2491.4,2490.6,3.8027]
[1751236958385,48.16,2491.5,2491.1,4.95804943]
[1751236958386,7.955,2491.5,2491.1,4.95804943]
[1751236958587,7.955,2491.5,2491.2,0.48155]
[1751236959685,3.2078,2491.6,2491.5,0.4815]
[1751236959984,3.2078,2491.9,2491.8,0.48144]
[1751236960983,3.2078,2491.9,2491.4,6.91974943]
[1751236961288,3.2078,2491.9,2491.8,0.48144]
[1751236961489,3.2078,2491.9,2491.7,4.95804943]
[1751236961490,3.2078,2492.2,2491.7,4.95804943]
[1751236961680,3.2078,2492.2,2492.1,0.48138]
[1751236961885,2.39219887,2492.4,2492.0,4.95804943]
[1751236961886,5.15106134,2492.5,2492.3,0.48134]
[1751236962285,4.35216268,2492.5,2492.4,0.48132]
[1751236962588,2.39336268,2492.5,2492.4,0.48131]
[1751236962783,10.34736268,2492.6,2492.5,0.4813]
[1751236963091,10.34736268,2492.6,2492.4,0.48131]
[1751236963291,2.39336268,2492.5,2492.4,0.48131]
[1751236963493,2.39336268,2492.6,2492.5,0.4813]
[1751236963785,2.39336268,2492.6,2492.3,4.95804943]
[1751236963786,5.10716134,2492.8,2492.7,0.48126]
[1751236963992,13.08796134,2492.9,2492.8,0.48124]
[1751236964195,9.8957,2492.9,2492.7,0.48126]
[1751236964692,9.8957,2492.9,2492.4,4.95804943]
[1751236964893,2.39353124,2492.7,2492.5,0.48129]
[1751236965091,5.60133124,2492.7,2492.4,0.48132]
[1751236965293,2.39353124,2492.6,2492.4,0.48132]
[1751236965693,2.39353124,2492.6,2492.3,1.9019]
[1751236965890,4.20313124,2492.6,2492.3,0.48133]
[1751236966085,4.20313124,2492.6,2492.4,0.48132]
[1751236966292,2.39353124,2492.9,2492.5,0.4813]
[1751236966493,2.87476124,2492.9,2492.5,0.4813]
[1751236966794,1.8096,2492.8,2492.5,0.4813]
[1751236966996,2.39353124,2492.9,2492.5,0.48129]
[1751236967298,1.8096,2492.8,2492.4,5.43935943]
[1751236967893,4.68438124,2492.8,2492.4,5.43935943]
[1751236968094,4.68438124,2492.8,2492.4,0.48131]
[1751236968592,3.2078,2492.6,2491.9,1.9702]
[1751236968893,3.2078,2492.6,2492.2,4.95804943]
[1751236969097,2.39353124,2492.7,2492.5,4.95804943]
[1751236969293,2.39353124,2492.8,2492.7,0.48126]
[1751236969498,2.39353124,2492.8,2492.5,4.95804943]
[1751236969798,5.60133124,2492.9,2492.8,0.48124]
[1751236970096,5.60133124,2492.9,2492.8,5.43928943]
[1751236970295,5.60133124,2492.9,2492.8,10.43928943]
[1751236970994,2.39353124,2492.9,2492.8,10.43928943]
[1751236971188,2.39353124,2492.9,2492.8,4.95804943]
[1751236971394,2.39353124,2492.9,2492.6,3.7481]
[1751236971693,2.39353124,2492.9,2492.7,0.48125]
[1751236971895,2.39353124,2492.9,2492.6,2.33118]
[1751236972096,2.39353124,2492.9,2492.7,0.48126]
[1751236972498,2.31789,2493.1,2492.7,0.48126]
[1751236973294,0.48121,2493.0,2492.6,1.8499]
[1751236973701,0.48121,2493.0,2492.6,2.33117]
[1751236974001,1.8367,2493.1,2492.6,1.8499]
[1751236974201,1.8367,2493.1,2492.6,2.33117]
[1751236974401,0.48123,2492.9,2492.6,1.8499]
[1751236974800,0.48126,2492.8,2492.5,12.86804943]
[1751236975000,1.868,2492.7,2492.5,4.95804943]
[1751236975403,2.34927,2492.7,2492.5,4.95804943]
[1751236975601,0.48124,2492.9,2492.5,5.43934943]
[1751236975798,11.1158,2493.0,2492.5,4.95804943]
[1751236975997,1.868,2492.8,2492.4,8.16584943]
[1751236976198,2.34926,2492.8,2492.3,0.48133]
[1751236976398,3.2078,2492.6,2492.2,1.13516022]
[1751236976702,1.868,2492.5,2492.1,8.16584943]
[1751236976900,0.48133,2492.4,2492.1,8.16584943]
[1751236977202,1.8653,2492.5,2492.2,0.48135]
[1751236977602,3.7333,2492.5,2492.2,0.48135]
[1751236977803,3.7333,2492.5,2492.1,8.16584943]
[1751236977995,3.7333,2492.5,2492.3,0.48133]
[1751236978197,3.7333,2492.5,2492.1,8.16584943]
[1751236978198,3.7333,2492.5,2492.2,0.48135]
[1751236979506,0.48139,2492.1,2491.8,3.2078]
[1751236979700,1.9556,2492.0,2491.8,3.2078]
[1751236979900,1.9556,2492.0,2491.8,3.68923]
[1751236980501,1.9556,2492.0,2491.8,3.2078]
[1751236980697,0.48142,2491.9,2491.8,3.2078]
[1751236980907,3.2078,2491.5,2490.3,1e-08]
[1751236981207,3.2078,2490.7,2490.3,4.95804943]
[1751236981402,11.1158,2490.7,2490.3,4.95804943]
[1751236981602,11.59745,2490.7,2490.3,4.95804943]
[1751236981798,0.48171,2490.4,2490.1,1.9923]
[1751236982003,3.2078,2490.4,2489.7,4.95804943]
[1751236982308,0.48187,2489.6,2488.7,4.34714211]
[1751236982503,3.2078,2489.3,2488.8,0.48201]
[1751236982702,3.2078,2489.3,2488.7,3.2078]
[1751236982900,1.9372,2489.2,2488.7,3.2078]
[1751236983102,3.2078,2488.8,2488.1,4.34714211]
[1751236983305,1.45532275,2488.7,2488.2,0.48212]
[1751236983506,3.2078,2488.5,2488.2,0.48212]
[1751236983901,2.55516436,2488.5,2488.3,0.48211]
[1751236984100,7.91,2488.8,2488.3,4.95804943]
[1751236984101,3.2078,2488.8,2488.3,4.95804943]
[1751236984300,7.91,2488.8,2488.6,4.95804943]
[1751236984504,3.2078,2489.1,2488.6,4.95804943]
[1751236984809,3.2078,2489.4,2489.1,0.48195]
[1751236985508,3.2078,2489.7,2489.6,0.48186]
[1751236985810,4.95804943,2491.1,2489.6,0.48186]
[1751236985811,3.2078,2490.6,2490.5,0.48169]
[1751236986211,3.2078,2490.6,2490.4,0.48169]
[1751236986408,1.8902,2490.5,2490.4,0.48169]
[1751236987307,1.8902,2490.5,2490.3,0.48172]
[1751236987513,1.8902,2490.5,2490.2,0.48174]
[1751236987707,1.8902,2490.5,2489.9,0.48179]
[1751236987708,3.2078,2490.3,2489.9,0.48179]
[1751236987902,1.83,2490.2,2489.9,0.48179]
[1751236988801,1.83,2490.2,2489.8,4.95804943]
[1751236989007,7.913,2490.1,2489.5,10.04614943]
[1751236989208,1.83,2490.0,2489.5,10.04614943]
[1751236989407,1.83,2490.0,2489.7,0.48183]
[1751236989608,7.913,2490.1,2489.8,4.95804943]
[1751236989912,7.913,2490.1,2489.9,0.4818]
[1751236990203,1.8642,2490.0,2489.8,5.43986943]
[1751236990410,1.8642,2490.0,2489.8,0.48182]
[1751236990608,1.8642,2490.0,2489.9,0.48181]
[1751236991006,3.2078,2490.3,2490.2,0.48175]
[1751236991206,11.1208,2490.3,2490.2,0.48175]
[1751236991410,11.1208,2490.3,2490.1,0.48176]
[1751236991608,1.8642,2490.2,2490.1,0.48176]
[1751236993107,3.2078,2490.6,2490.1,4.95804943]
[1751236993307,7.914,2490.8,2490.6,0.48167]
[1751236993514,7.914,2490.8,2490.2,4.95804943]
[1751236993813,1.8426,2490.7,2490.2,4.95804943]
[1751236994012,1.8426,2490.7,2490.5,0.48168]
[1751236994211,1.8426,2490.7,2490.2,4.95804943]
[1751236994212,1.8426,2490.7,2490.6,2.08167]
[1751236994804,9.7096,2490.7,2490.6,2.08167]
[1751236995009,9.7096,2490.7,2490.6,1.6]
[1751236995210,9.7096,2490.7,2490.6,2.08167]
[1751236995406,9.7096,2490.7,2490.6,1.6]
[1751236997110,10.19125,2490.7,2490.6,1.6]
[1751236997314,10.19125,2490.7,2490.0,0.48177]
[1751236997315,0.48172,2490.4,2490.0,0.48177]
[1751236997614,1.9481,2491.1,2489.7,3.2078]
[1751236997615,13.0777,2490.3,2489.7,3.2078]
[1751236997809,7.867,2490.2,2489.7,3.2078]
[1751236998006,2.0029,2490.1,2489.7,3.2078]
[1751236999215,2.0029,2490.1,2490.0,0.48179]
[1751236999417,3.2078,2490.3,2489.9,4.95804943]
[1751236999418,11.0748,2490.3,2489.9,4.95804943]
[1751236999618,11.0748,2490.3,2490.1,0.48176]
[1751236999818,1.9154,2490.2,2490.1,0.48176]
[1751237000023,1.9154,2490.2,2490.0,0.48177]
[1751237000313,1.9154,2490.2,2490.0,0.48178]
[1751237000513,1.9154,2490.2,2489.8,0.48181]
[1751237000714,1.9154,2490.2,2489.7,3.2078]
[1751237001023,5.1232,2490.2,2490.1,0.48177]
[1751237001318,12.9902,2490.2,2490.0,0.48178]
[1751237001522,5.1232,2490.2,2489.8,4.95804943]
[1751237001717,12.9902,2490.2,2489.9,0.4818]
[1751237002319,0.48178,2490.1,2489.5,1.8803]
[1751237002519,5.101,2490.0,2489.8,0.48182]
[1751237003420,3.2078,2489.9,2489.5,6.83834943]
[1751237003618,5.101,2489.9,2489.5,6.83834943]
[1751237003921,8.34984,2489.8,2489.4,0.48189]
[1751237004120,1.8932,2489.7,2489.4,0.48189]
[1751237004423,1.8932,2489.7,2489.1,3.2078]
[1751237004627,0.48189,2489.5,2489.1,3.68975]
[1751237004820,1.8932,2489.4,2489.1,3.68975]
[1751237005623,0.48193,2489.3,2488.9,0.48199]
[1751237005813,2.41244,2489.2,2488.8,2.3705]
[1751237006218,1.9305,2489.2,2488.7,10.47747943]
[1751237006522,11.0758,2489.2,2489.1,0.48196]
[1751237006822,11.0758,2489.2,2489.0,5.44000943]
[1751237006823,3.2078,2489.2,2489.0,5.44000943]
[1751237007022,3.2078,2489.2,2489.1,0.48196]
[1751237007227,7.869,2489.6,2489.0,4.95804943]
[1751237007726,9.7995,2489.6,2489.2,0.48193]
[1751237007927,9.7995,2489.6,2489.1,0.48195]
[1751237008217,1.9305,2489.6,2489.1,0.48196]
[1751237008418,7.869,2489.5,2489.2,0.48194]
[1751237008814,9.8239,2489.5,2489.2,0.48194]
[1751237009022,10.30578,2489.5,2489.1,0.48194]
[1751237009225,3.2078,2489.4,2488.7,9.99544943]
[1751237009419,1.9549,2489.3,2489.0,0.48198]
[1751237009616,3.68971,2489.4,2488.9,4.95804943]
[1751237009617,11.0768,2489.4,2488.9,4.95804943]
[1751237009818,11.0768,2489.4,2489.3,0.48191]
[1751237009819,7.869,2489.4,2489.3,0.48191]
[1751237010523,3.2078,2489.7,2489.2,4.95804943]
[1751237011025,3.2078,2489.7,2489.5,0.48187]
[1751237011322,3.2078,2489.7,2489.6,0.48186]
[1751237012323,3.2078,2489.7,2489.6,1.6]
[1751237012523,3.2078,2489.7,2489.6,2.08186]
[1751237014127,2.39353124,2491.2,2489.6,14.76584943]
[1751237014326,1.9495,2490.9,2490.5,4.95804943]
[1751237014528,3.2078,2490.7,2490.0,3.2078]
[1751237014727,1.9495,2490.6,2490.0,3.2078]
[1751237014928,1.9495,2490.6,2490.3,0.48173]
[1751237015329,1.9495,2490.6,2490.2,0.48174]
[1751237015529,1.9495,2490.6,2490.3,0.48173]
[1751237015730,1.9495,2490.6,2490.0,5.1895]
[1751237016030,1.9495,2490.6,2490.1,0.48177]
[1751237016225,2.43118,2490.6,2490.0,3.68958]
[1751237016422,2.43118,2490.6,2490.0,3.2078]
[1751237016828,7.869,2490.5,2490.2,0.48173]
[1751237017025,1.9495,2490.4,2490.2,0.48174]
[1751237017225,7.869,2490.4,2490.3,0.48173]
[1751237017432,3.2078,2490.7,2490.4,0.4817]
[1751237017630,9.8159,2490.6,2490.4,0.4817]
[1751237017829,7.869,2490.5,2490.4,0.4817]
[1751237018036,9.8159,2490.5,2490.3,0.48172]
[1751237018248,9.8159,2490.5,2490.2,5.43978943]
[1751237018433,9.8159,2490.5,2490.3,0.48172]
[1751237018634,9.8159,2490.5,2490.2,4.95804943]
[1751237018931,1.9469,2490.5,2490.2,4.95804943]
[1751237019134,1.9469,2490.5,2490.4,0.48171]
[1751237019341,9.8149,2490.5,2490.4,0.48171]
[1751237019533,9.8149,2490.5,2490.3,0.48172]
[1751237019837,1.9469,2490.5,2490.4,0.48171]
[1751237020228,51.3988,2491.0,2490.2,4.95804943]
[1751237020434,7.1563,2491.3,2490.8,4.95804943]
[1751237020634,9.7902,2491.2,2490.8,5.43966943]
[1751237020937,9.7902,2491.2,2490.9,0.48161]
[1751237021238,9.7902,2491.2,2491.0,0.48159]
[1751237021430,10.27177,2491.2,2490.8,4.95804943]
[1751237021635,9.7902,2491.2,2490.7,3.2078]
[1751237021837,0.48158,2491.1,2490.7,3.68945]
[1751237022043,1.9222,2491.0,2490.7,3.68945]
[1751237022343,1.9222,2491.0,2490.8,0.48163]
[1751237023335,1.9222,2491.0,2490.4,3.2078]
[1751237023537,0.48161,2490.9,2490.4,3.2078]
[1751237023735,9.8146,2490.8,2490.5,0.48168]
[1751237023937,9.8146,2490.8,2490.4,3.2078]
[1751237024245,7.63784,2491.3,2490.9,0.4816]
[1751237024436,7.63784,2491.3,2490.6,0.48166]
[1751237024437,0.48161,2491.0,2490.6,0.48166]
[1751237024638,9.7606,2491.2,2490.5,0.48168]
[1751237024639,3.2078,2490.8,2490.5,0.48168]
[1751237024944,9.7606,2490.7,2490.2,0.48175]
[1751237025241,0.48168,2490.6,2490.2,0.48175]
[1751237025440,1.9466,2490.5,2490.2,0.48175]
[1751237025837,5.1544,2490.5,2490.1,3.2078]
[1751237026042,0.48173,2490.3,2489.9,0.48179]
[1751237026339,5.1544,2490.5,2489.8,6.17074211]
[1751237026340,9.7606,2490.2,2489.8,5.0314]
[1751237026538,10.24235,2490.2,2489.8,5.0314]
[1751237026738,0.4818,2490.0,2489.8,3.2078]
[1751237027039,2.46401,2489.9,2489.8,3.2078]
[1751237027244,0.48184,2489.7,2489.6,1.6]
[1751237027440,11.50364,2489.7,2489.6,1.6]
[1751237028045,7.814,2489.7,2489.6,1.6]
[1751237028242,1.9822,2489.9,2489.6,3.2]
[1751237028444,7.814,2489.7,2489.6,3.2]
[1751237028944,7.814,2489.7,2489.6,3.68186]
[1751237029348,1.9822,2489.9,2489.7,0.48184]
[1751237029550,7.814,2489.8,2489.7,0.48184]
[1751237029944,1.9822,2489.9,2489.8,0.48182]
[1751237030246,7.814,2490.1,2489.9,0.48181]
[1751237030445,7.814,2490.1,2489.9,4.95804943]
[1751237030643,7.814,2490.1,2490.0,0.48178]
[1751237030848,7.814,2490.1,2489.8,3.68961]
[1751237032050,7.815,2490.0,2489.8,3.68962]
[1751237032750,7.815,2490.0,2489.9,0.48181]
[1751237033052,2.48594,2490.3,2489.9,0.4818]
[1751237033348,7.815,2490.2,2489.9,0.4818]
[1751237033551,7.815,2490.2,2489.8,3.2078]
[1751237033552,3.2078,2490.8,2490.1,4.95804943]
[1751237033750,3.2078,2490.8,2489.6,4.40463]
[1751237033751,2.39353124,2490.9,2490.5,3.2078]
[1751237033946,7.815,2491.0,2490.7,4.95804943]
[1751237034148,7.815,2491.0,2490.8,0.48162]
[1751237034347,3.2078,2491.1,2490.5,3.2078]
[1751237034546,9.6669,2491.0,2490.5,3.2078]
[1751237034751,1.8519,2491.0,2490.5,3.2078]
[1751237034945,1.8519,2491.0,2490.7,0.48164]
[1751237035252,7.815,2490.9,2490.8,0.48163]
[1751237035550,7.815,2490.9,2490.5,3.2078]
[1751237035750,7.815,2490.9,2490.6,0.48165]
[1751237036154,7.815,2490.9,2490.7,0.48164]
[1751237036355,7.815,2490.9,2490.6,0.48166]
[1751237036554,7.815,2490.9,2490.7,0.48165]
[1751237037352,7.815,2490.9,2490.6,0.48166]
[1751237037754,7.815,2490.9,2490.5,3.2078]
[1751237037755,1.8711,2490.9,2490.7,0.48165]
[1751237037954,9.6851,2490.9,2490.7,0.48165]
[1751237038453,9.6851,2490.9,2490.5,3.2078]
[1751237038656,0.48163,2490.8,2490.5,3.2078]
[1751237038953,2.36966,2490.7,2490.5,3.2078]
[1751237039355,1.888,2490.7,2490.5,3.2078]
[1751237041352,3.2078,2491.1,2490.8,0.48162]
[1751237041353,3.68938,2491.1,2490.8,0.48162]
[1751237041557,7.814,2491.0,2490.8,0.48162]
[1751237041755,9.7738,2491.0,2490.5,3.2078]
[1751237041954,10.2554,2491.0,2490.6,0.48166]
[1751237042153,3.2078,2490.7,2490.2,3.2078]
[1751237042348,3.2078,2490.7,2490.0,1.9722]
[1751237042349,9.7738,2490.6,2490.0,1.9722]
[1751237042555,0.48174,2490.3,2489.9,3.2078]
[1751237042749,9.7738,2490.2,2489.9,3.6896]
[1751237042954,0.48179,2490.1,2489.9,3.2078]
[1751237043253,1.9598,2490.0,2489.9,3.2078]
[1751237043458,2.44159,2490.0,2489.9,3.2078]
[1751237043857,1.9598,2490.0,2489.9,3.2078]
[1751237044256,7.814,2490.3,2490.1,0.48175]
[1751237044454,7.814,2490.3,2490.0,5.43981943]
[1751237044654,7.814,2490.3,2490.1,0.48177]
[1751237044855,3.2078,2490.9,2490.2,3.2078]
[1751237045055,3.2078,2490.9,2490.7,0.48164]
[1751237045256,3.2078,2490.9,2490.8,0.48163]
[1751237045456,3.2078,2490.9,2490.5,8.16584943]
[1751237045652,3.68941,2490.9,2490.6,0.48166]
[1751237045959,3.68941,2490.9,2490.5,8.16584943]
[1751237045960,3.2078,2490.9,2490.5,8.16584943]
[1751237046161,3.2078,2490.9,2490.7,0.48164]
[1751237046658,3.2078,2490.9,2490.8,0.48163]
[1751237047160,3.2078,2490.9,2490.7,0.48164]
[1751237047355,2.0198,2490.9,2490.6,0.48167]
[1751237047557,7.814,2491.0,2490.7,0.48165]
[1751237047758,50.0566,2491.2,2490.5,5.2246]
[1751237047958,6.40006134,2491.7,2491.1,8.16584943]
[1751237048159,3.19226134,2491.7,2491.2,2.0168]
[1751237048354,0.48143,2491.9,2491.4,0.4815]
[1751237048554,2.34903,2491.9,2491.4,0.4815]
[1751237048754,0.48144,2491.8,2491.4,0.48151]
[1751237048958,1.8676,2491.8,2491.4,0.48151]
[1751237049160,11.0218,2492.8,2491.7,3.2078]
[1751237049460,3.2078,2492.4,2491.9,8.16584943]
[1751237049664,2.34895,2492.3,2491.7,0.48146]
[1751237049857,10.16295,2492.3,2491.7,0.48146]
[1751237050258,10.16295,2492.3,2491.8,0.48144]
[1751237050458,10.16295,2492.3,2491.6,5.43950943]
[1751237050459,0.48136,2492.2,2491.6,5.43950943]
[1751237050658,1.9848,2492.1,2491.6,4.95804943]
[1751237050860,1.9848,2492.1,2491.7,0.48146]
[1751237051062,1.9848,2492.1,2491.6,4.95804943]
[1751237051361,2.46619,2492.1,2491.6,4.95804943]
[1751237051557,1.9848,2492.1,2491.6,4.95804943]
[1751237051763,1.9848,2492.1,2491.9,3.2078]
[1751237051962,12.9308,2492.8,2492.0,0.48138]
[1751237051963,3.67356134,2492.6,2492.0,0.48138]
[1751237052153,0.48134,2492.4,2491.9,8.16584943]
[1751237052359,0.48135,2492.3,2491.9,3.2078]
[1751237052560,0.4814,2492.0,2491.9,3.2078]
[1751237052764,0.48145,2491.8,2491.6,3.2078]
[1751237053062,0.48146,2491.7,2491.6,3.2078]
[1751237053358,0.48152,2491.4,2491.3,1.13533024]
[1751237053755,0.48155,2491.3,2491.1,1.13533024]
[1751237053953,0.48155,2491.3,2491.2,1.13533024]
[1751237054164,0.48155,2491.3,2491.0,9.30519154]
[1751237054165,0.48155,2491.3,2491.1,1.13533024]
[1751237054363,2.40905,2491.2,2491.1,1.13533024]
[1751237054761,2.40905,2491.2,2491.0,3.2078]
[1751237054964,1.9275,2491.2,2491.0,3.2078]
[1751237055263,0.48155,2491.3,2491.0,3.2078]
[1751237055464,0.48156,2491.2,2491.0,3.2078]
[1751237055664,0.48157,2491.1,2491.0,3.2078]
[1751237055860,0.48161,2490.9,2490.8,1.13533024]
[1751237056059,0.48163,2490.8,2490.7,4.34313024]
[1751237056259,0.48163,2490.8,2490.7,1.13533024]
[1751237056459,0.48163,2490.8,2490.4,1.51855325]
[1751237056460,0.48167,2490.6,2490.5,2.27467235]
[1751237056865,2.44696,2490.7,2490.5,2.27467235]
[1751237057165,2.44695,2490.7,2490.6,1.13533024]
[1751237057459,2.44695,2490.7,2490.3,4.72635325]
[1751237057460,0.48167,2490.6,2490.4,1.13533024]
[1751237057661,1.9653,2490.5,2490.3,3.2078]
[1751237057858,0.48166,2490.7,2490.3,3.2078]
[1751237058059,1.9653,2490.7,2490.3,4.34313024]
[1751237058358,1.9653,2490.7,2490.3,3.68953]
[1751237058559,3.2078,2491.1,2490.4,4.95804943]
[1751237058757,3.2078,2491.1,2490.7,4.95804943]
[1751237059157,3.2078,2491.1,2490.8,1.8964]
[1751237059361,3.2078,2491.1,2490.9,0.48161]
[1751237060061,2.44682,2491.4,2490.8,1.8964]
[1751237060062,1.9653,2491.4,2491.0,3.68939]
[1751237060267,2.44682,2491.4,2491.0,3.2078]
[1751237061670,2.0183,2491.9,2491.3,3.2078]
[1751237061868,8.23944,2491.8,2491.5,4.95804943]
[1751237062062,10.12894,2491.8,2491.5,4.95804943]
[1751237062469,0.48146,2491.7,2491.3,8.16584943]
[1751237062767,2.37096,2491.7,2491.3,8.16584943]
[1751237062967,1.8895,2491.7,2491.3,8.64737943]
[1751237063164,2.37096,2491.7,2491.3,8.16584943]
[1751237063565,2.37096,2491.7,2491.3,8.64737943]
[1751237063765,0.48152,2491.4,2491.0,3.2078]
[1751237063964,1.8895,2491.7,2491.0,3.2078]
[1751237064166,0.48156,2491.2,2491.0,3.2078]
[1751237064869,1.8692,2491.3,2491.0,3.68938]
[1751237065061,7.757,2491.4,2491.1,0.48157]
[1751237065268,3.2078,2491.8,2491.5,0.48149]
[1751237065471,7.757,2491.7,2491.4,5.43954943]
[1751237065665,7.757,2491.7,2491.4,4.95804943]
[1751237065867,7.757,2491.7,2491.4,5.43955943]
[1751237066367,7.757,2491.7,2491.5,0.4815]
[1751237066567,7.757,2491.7,2491.4,5.43955943]
[1751237066863,0.48148,2491.6,2491.0,8.16584943]
[1751237067068,1.8571,2491.6,2491.3,0.48153]
[1751237067369,1.8571,2491.6,2491.0,8.16584943]
[1751237067570,0.48153,2491.4,2491.0,8.64743943]
[1751237067772,0.4815,2491.5,2491.1,0.48157]
[1751237067962,0.4815,2491.5,2491.0,8.64742943]
[1751237068367,2.33859,2491.6,2491.1,0.48157]
[1751237068571,0.4815,2491.5,2491.1,0.48157]
[1751237068766,1.8571,2491.5,2491.0,8.16584943]
[1751237069072,3.2078,2491.8,2491.3,4.95804943]
[1751237069268,7.757,2491.9,2491.7,0.48146]
[1751237069471,7.757,2491.9,2491.8,0.48144]
[1751237069762,3.2078,2492.4,2491.6,13.16584943]
[1751237069967,3.2078,2492.4,2492.1,4.95804943]
[1751237070168,0.48135,2492.3,2491.9,0.48141]
[1751237070369,2.34395,2492.3,2491.9,0.48141]
[1751237070769,0.48136,2492.2,2491.8,5.43947943]
[1751237070964,0.48136,2492.2,2491.8,4.95804943]
[1751237071170,1.8626,2492.3,2491.7,9.30439943]
[1751237071575,0.48136,2492.2,2491.7,9.30439943]
[1751237071774,2.34398,2492.1,2491.7,9.30439943]
[1751237072067,1.8626,2492.1,2491.7,9.30439943]
[1751237072273,1.8626,2492.1,2491.7,8.82294943]
[1751237072578,3.2078,2492.4,2492.2,0.48135]
[1751237073068,0.48134,2492.3,2491.8,0.48143]
[1751237073272,2.44944,2492.3,2491.8,0.48143]
[1751237073474,0.48136,2492.2,2491.7,4.34634]
[1751237073675,2.44949,2492.1,2491.7,3.8649]
[1751237073876,3.2078,2492.4,2491.9,8.16584943]
[1751237074070,5.1759,2492.4,2492.1,0.48137]
[1751237074271,5.1759,2492.4,2492.0,0.48139]
[1751237074468,5.1759,2492.4,2491.9,8.16584943]
[1751237074671,5.1759,2492.4,2491.9,3.2078]
[1751237074976,1.9681,2492.4,2492.1,0.48137]
[1751237075679,1.9681,2492.4,2491.9,8.16584943]
[1751237075871,1.9681,2492.4,2492.1,0.48137]
[1751237076067,1.9681,2492.4,2492.2,0.48135]
[1751237076271,3.2078,2492.8,2492.2,0.48135]
[1751237076272,7.756,2492.5,2492.3,0.48134]
[1751237076471,7.756,2492.5,2492.2,8.16584943]
[1751237076672,7.756,2492.5,2492.2,3.68915]
[1751237077168,10.10931,2492.5,2492.2,3.2078]
[1751237077871,1.872,2492.5,2492.2,3.68916]
[1751237078573,0.48134,2492.4,2492.2,3.2078]
[1751237078771,2.35331,2492.5,2492.2,3.2078]
[1751237078974,2.3533,2492.5,2492.2,3.68915]
[1751237079471,1.872,2492.5,2492.2,3.2078]
[1751237079675,0.48136,2492.3,2492.0,0.4814]
[1751237079875,0.48134,2492.4,2492.0,0.4814]
[1751237080276,1.872,2492.5,2491.8,8.64726943]
[1751237080477,3.2078,2492.5,2492.0,4.95804943]
[1751237080678,3.2078,2492.5,2492.3,4.95804943]
[1751237081079,3.2078,2492.5,2492.3,5.43937943]
[1751237081479,3.2078,2492.5,2492.1,3.68917]
[1751237081675,5.70632,2492.5,2492.1,3.68917]
[1751237081875,0.48132,2492.4,2492.1,3.68917]
[1751237082374,2.0172,2492.4,2492.1,3.68917]
[1751237083179,2.49853,2492.4,2492.1,3.68917]
[1751237083880,2.49853,2492.4,2492.1,3.2078]